fUSD/lending_fUSD_20250103
["ID","MTS","AMOUNT","RATE_DAILY","PERIOD"]
[347521483,1735899085212,-672.41,0.00010363,2]
[347521484,1735899085221,-4533.91,0.00010363,2]
[347521485,1735899085231,-1084.39,0.00010363,2]
[347521486,1735899085240,-443.62633174,0.00010363,2]
[347521487,1735899085249,-841.21,0.00010363,2]
[347521488,1735899085259,-1629.35,0.00010363,2]
[347521489,1735899085268,-794.76,0.00010363,2]
[347521490,1735899085277,-1434.93,0.00010363,2]
[347521491,1735899085286,-2007.66,0.00010363,2]
[347521492,1735899085296,-517.99,0.00010363,2]
[347521493,1735899085305,-880.0,0.00010363,2]
[347521494,1735899085315,-1513.11,0.00010363,2]
[347521495,1735899085324,-500.0,0.00010363,2]
[347521496,1735899085334,-5599.2,0.00010363,2]
[347521497,1735899085343,-500.0,0.00010363,2]
[347521498,1735899085352,-1279.82,0.00010363,2]
[347521499,1735899085361,-616.51,0.00010363,2]
[347521500,1735899085371,-871.61,0.00010363,2]
[347521501,1735899085380,-529.15,0.00010363,2]
[347521502,1735899085392,-500.0,0.00010363,2]
[347521503,1735899085403,-2693.09,0.00010363,2]
[347521504,1735899085414,-2200.43,0.00010363,2]
[347521505,1735899085423,-1012.43,0.00010363,2]
[347521506,1735899085433,-658.22,0.00010363,2]
[347521507,1735899085442,-1456.51,0.00010363,2]
[347521508,1735899085451,-2907.57420507,0.00010363,2]
[347521509,1735899085464,-2174.3,0.00010363,2]
[347521510,1735899085476,-323.60579493,0.00010363,2]
[347521511,1735899085485,-312.63420507,0.00010363,2]
[347521512,1735899085497,-187.36579493,0.00010363,2]
[347521513,1735899085506,-500.0,0.00010363,2]
[347521514,1735899085517,-187.26420507,0.00010363,2]
[347521515,1735899085532,-1295.57579493,0.00010363,2]
[347521516,1735899085542,-500.0,0.00010363,2]
[347521517,1735899085552,-1230.39377196,0.00010363,2]
[347521518,1735899085563,-4423.04168,0.00010363,2]
[347521519,1735899085575,-11710.58454804,0.00010363,2]
[347521520,1735899085584,-459.073056,0.00010363,2]
[347521521,1735899085594,-502.71517553,0.00010363,2]
[347521522,1735899085604,-500.0,0.00010363,2]
[347521523,1735899085613,-1414.67,0.00010363,2]
[347521524,1735899085623,-1958.47,0.00010363,2]
[347521525,1735899085632,-1407.8,0.00010363,2]
[347521526,1735899085642,-500.0,0.00010363,2]
[347521527,1735899085652,-938.53,0.00010363,2]
[347521528,1735899085663,-500.0,0.00010363,2]
[347521529,1735899085673,-500.0,0.00010363,2]
[347521530,1735899085682,-2646.53,0.00010363,2]
[347521531,1735899085692,-500.0,0.00010363,2]
[347521532,1735899085702,-500.0,0.00010363,2]
[347521533,1735899085712,-654.53,0.00010363,2]
[347521534,1735899085722,-500.0,0.00010363,2]
[347521535,1735899085731,-2111.92,0.00010363,2]
[347521536,1735899085741,-2862.82,0.00010363,2]
[347521537,1735899085750,-1898.21,0.00010363,2]
[347521538,1735899085760,-873.16,0.00010363,2]
[347521539,1735899085770,-289.61347292,0.00010363,2]
[347521540,1735899085780,-3493.09,0.00010363,2]
[347521541,1735899085789,-500.0,0.00010363,2]
[347521542,1735899085798,-841.42,0.00010363,2]
[347521543,1735899085809,-500.0,0.00010363,2]
[347521544,1735899085819,-500.0,0.00010363,2]
[347521545,1735899085829,-1486.74,0.00010363,2]
[347521546,1735899085838,-3016.05,0.00010363,2]
[347521547,1735899085850,-500.0,0.00010363,2]
[347521548,1735899085860,-4260.19,0.00010363,2]
[347521549,1735899085870,-723.26991872,0.00010363,2]
[347521550,1735899128912,2674.36,0.0002,120]
[347521553,1735899281554,-200.0,8.677e-05,2]
[347521554,1735899281576,-1000.0,8.763e-05,2]
[347521555,1735899281599,-684.24,8.811e-05,2]
[347521556,1735899281621,-167.82,8.946e-05,2]
[347521557,1735899281644,-300.0,8.991e-05,2]
[347521558,1735899281665,-500.0,8.992e-05,2]
[347521559,1735899281687,-1880.99,8.992e-05,2]
[347521560,1735899281708,-500.0,8.992e-05,2]
[347521561,1735899281730,-500.0,8.992e-05,2]
[347521562,1735899281751,-500.0,8.992e-05,2]
[347521563,1735899281774,-500.0,8.992e-05,2]
[347521564,1735899281796,-500.0,8.992e-05,2]
[347521565,1735899281817,-269.76790156,8.992e-05,2]
[347521566,1735899281839,-1518.54,8.992e-05,2]
[347521567,1735899281862,-500.0,8.992e-05,2]
[347521568,1735899281888,-500.0,8.992e-05,2]
[347521569,1735899281910,-828.96,8.992e-05,2]
[347521570,1735899281934,-4715.29,8.992e-05,2]
[347521571,1735899281957,-505.9,8.992e-05,2]
[347521572,1735899281978,-500.0,8.992e-05,2]
[347521573,1735899281999,-500.0,8.992e-05,2]
[347521574,1735899282020,-500.0,8.992e-05,2]
[347521575,1735899282043,-9936.79,8.992e-05,2]
[347521576,1735899282064,-509.33,8.992e-05,2]
[347521577,1735899282086,-500.0,8.992e-05,2]
[347521578,1735899282108,-2796.07,8.992e-05,2]
[347521579,1735899282129,-500.0,8.992e-05,2]
[347521580,1735899282150,-500.0,8.992e-05,2]
[347521581,1735899282172,-607.68,8.992e-05,2]
[347521582,1735899282194,-1843.4,8.992e-05,2]
[347521583,1735899282218,-500.0,8.992e-05,2]
[347521584,1735899282240,-500.0,8.992e-05,2]
[347521585,1735899282262,-632.7,8.992e-05,2]
[347521586,1735899282284,-500.0,8.992e-05,2]
[347521587,1735899282305,-500.0,8.992e-05,2]
[347521588,1735899282326,-4643.11,8.992e-05,2]
[347521589,1735899282347,-939.93,8.992e-05,2]
[347521590,1735899282369,-976.62,8.992e-05,2]
[347521591,1735899282392,-892.78,8.992e-05,2]
[347521592,1735899282415,-1150.08209844,8.992e-05,2]
[347521593,1735899304349,163.0,8.992e-05,30]
[347521594,1735899304599,163.0,0.0001085,30]
[347521595,1735899305004,163.0,0.00012709,30]
[347521596,1735899305313,163.0,0.00014567,30]
[347521597,1735899603311,164.0,8.992e-05,30]
[347521598,1735899603621,164.0,0.00013328,30]
[347521599,1735899903419,165.0,8.992e-05,30]
[347521600,1735899931139,-159.63,8.406e-05,2]
[347521601,1735899931163,-7060.37,8.489e-05,2]
[347521604,1735899986600,25320.34960643,0.0002,120]
[347521609,1735900111179,184.3889745,0.0002,120]
[347521617,1735900121012,151.9990085,0.0002,120]
[347521622,1735900204479,157.0,8.992e-05,30]
[347521623,1735900204827,157.0,9.993e-05,30]
[347521624,1735900205134,157.0,0.00010993,30]
[347521625,1735900205460,157.0,0.00011994,30]
[347521626,1735900206200,157.0,0.00012994,30]
[347521627,1735900206621,157.0,0.00013995,30]
[347521628,1735900206794,157.0,0.00014996,30]
[347521629,1735900213821,1766.54,0.0002,120]
[347521630,1735900221911,10000.0,0.0001501,24]
[347521631,1735900230736,150.0,0.00015984,120]
[347521639,1735900231904,-367.06128409,8.219e-05,2]
[347521640,1735900232383,-1450.72871591,8.219e-05,2]
[347521641,1735900232392,-342.12,8.219e-05,2]
[347521642,1735900232402,-1000.0,8.219e-05,2]
[347521644,1735900232411,-300.0,8.277e-05,2]
[347521646,1735900232421,-1250.31,8.278e-05,2]
[347521648,1735900232430,-160.73,8.303e-05,2]
[347521650,1735900232439,-2491.33,8.406e-05,2]
[347521652,1735900232450,-16839.63,8.489e-05,2]
[347521654,1735900232459,-1233.84,8.537e-05,2]
[347521655,1735900232469,-250.0,8.58e-05,2]
[347521656,1735900232478,-250.0,8.591e-05,2]
[347521657,1735900232488,-177.16,8.715e-05,2]
[347521658,1735900232498,-250.0,8.721e-05,2]
[347521659,1735900232508,-1100.0,8.8e-05,3]
[347521660,1735900232518,-2200.0,8.9e-05,3]
[347521661,1735900232527,-1955.92,8.904e-05,2]
[347521662,1735900232536,-436.86,8.904e-05,2]
[347521663,1735900232546,-2723.28,8.991e-05,2]
[347521664,1735900232555,-2204.35,8.991e-05,2]
[347521665,1735900232565,-1835.81,8.991e-05,2]
[347521666,1735900232575,-5148.92,8.991e-05,2]
[347521667,1735900232584,-857.74,8.991e-05,2]
[347521668,1735900232593,-5881.66,8.991e-05,2]
[347521669,1735900232602,-500.0,8.991e-05,2]
[347521670,1735900232612,-2952.25,8.991e-05,2]
[347521671,1735900232621,-5040.99,8.991e-05,2]
[347521672,1735900232631,-4366.41,8.991e-05,2]
[347521673,1735900232640,-3829.15,8.991e-05,2]
[347521674,1735900232650,-1465.16,8.991e-05,2]
[347521675,1735900232659,-928.16092456,8.991e-05,2]
[347521676,1735900232671,-1218.94907544,8.991e-05,2]
[347521677,1735900232681,-478.52571207,8.991e-05,2]
[347521678,1735900232700,-2096.14913858,8.991e-05,2]
[347521679,1735900232711,-1273.05622712,8.991e-05,2]
[347521680,1735900232736,-6288.47892223,8.991e-05,2]
[347521681,1735900232746,-5222.52,8.991e-05,2]
[347521682,1735900232756,-5775.44,8.991e-05,2]
[347521683,1735900232766,-1055.0,8.991e-05,2]
[347521684,1735900232776,-500.0,8.991e-05,2]
[347521685,1735900232786,-515.31,8.991e-05,2]
[347521686,1735900232795,-500.0,8.991e-05,2]
[347521687,1735900232805,-742.75,8.991e-05,2]
[347521688,1735900232815,-500.0,8.991e-05,2]
[347521689,1735900232824,-1322.33,8.991e-05,2]
[347521690,1735900232833,-2139.12,8.991e-05,2]
[347521691,1735900232843,-3415.28,8.991e-05,2]
[347521692,1735900232853,-500.0,8.992e-05,2]
[347521693,1735900232862,-500.0,8.992e-05,2]
[347521694,1735900232871,-755.98,8.992e-05,2]
[347521695,1735900232881,-2772.79,8.992e-05,2]
[347521696,1735900232890,-1715.22,8.992e-05,2]
[347521697,1735900232900,-2132.88,8.992e-05,2]
[347521698,1735900232910,-1491.09,8.992e-05,2]
[347521699,1735900232919,-501.89,8.992e-05,2]
[347521700,1735900232928,-212.65955623,8.992e-05,2]
[347521701,1735900232938,-1525.46,8.992e-05,2]
[347521702,1735900232947,-707.61,8.992e-05,2]
[347521703,1735900232957,-1830.57,8.992e-05,2]
[347521704,1735900232966,-2026.72,8.992e-05,2]
[347521705,1735900232975,-1375.09,8.992e-05,2]
[347521706,1735900232985,-685.44,8.992e-05,2]
[347521707,1735900232995,-500.0,8.992e-05,2]
[347521708,1735900233004,-500.0,8.992e-05,2]
[347521709,1735900233013,-1526.14,8.992e-05,2]
[347521710,1735900233023,-2664.46,8.992e-05,2]
[347521711,1735900233032,-502.15727406,8.992e-05,2]
[347521712,1735900233042,-500.0,8.992e-05,2]
[347521713,1735900233051,-542.92,8.992e-05,2]
[347521714,1735900233060,-500.0,8.992e-05,2]
[347521715,1735900233069,-1710.49,8.992e-05,2]
[347521716,1735900233079,-907.07,8.992e-05,2]
[347521717,1735900233089,-1777.23,8.992e-05,2]
[347521718,1735900233098,-1837.5,8.992e-05,2]
[347521719,1735900233107,-500.0,8.992e-05,2]
[347521720,1735900233116,-683.06,8.992e-05,2]
[347521721,1735900233125,-1561.89,8.992e-05,2]
[347521722,1735900233135,-1091.82,8.992e-05,2]
[347521723,1735900233145,-500.0,8.992e-05,2]
[347521724,1735900233154,-2497.42,8.992e-05,2]
[347521725,1735900233164,-1552.49,8.992e-05,2]
[347521726,1735900233174,-500.0,8.992e-05,2]
[347521727,1735900233185,-1606.36,8.992e-05,2]
[347521728,1735900233194,-1296.28,8.992e-05,2]
[347521729,1735900233204,-1552.95,8.992e-05,2]
[347521730,1735900233212,-936.71,8.992e-05,2]
[347521731,1735900233222,-314.74300511,8.992e-05,2]
[347521732,1735900233231,-500.0,8.992e-05,2]
[347521733,1735900233241,-837.14,8.992e-05,2]
[347521734,1735900233251,-2184.58,8.992e-05,2]
[347521735,1735900233261,-1558.16,8.992e-05,2]
[347521736,1735900233270,-937.69,8.992e-05,2]
[347521737,1735900233280,-1147.58,8.992e-05,2]
[347521738,1735900233290,-2086.65,8.992e-05,2]
[347521739,1735900233299,-1447.58,8.992e-05,2]
[347521740,1735900233309,-500.0,8.992e-05,2]
[347521741,1735900233318,-567.07,8.992e-05,2]
[347521742,1735900233327,-1458.72,8.992e-05,2]
[347521743,1735900233336,-1236.54,8.992e-05,2]
[347521744,1735900233346,-677.07,8.992e-05,2]
[347521745,1735900233355,-500.0,8.992e-05,2]
[347521746,1735900233364,-1934.75,8.992e-05,2]
[347521747,1735900233374,-500.0,8.992e-05,2]
[347521748,1735900233383,-2139.96,8.992e-05,2]
[347521749,1735900233392,-1163.29,8.992e-05,2]
[347521750,1735900233401,-500.0,8.992e-05,2]
[347521751,1735900233410,-500.0,8.992e-05,2]
[347521752,1735900233420,-500.0,8.992e-05,2]
[347521753,1735900233429,-1623.4,8.992e-05,2]
[347521754,1735900233438,-1007.26,8.992e-05,2]
[347521755,1735900233448,-808.16,8.992e-05,2]
[347521756,1735900233457,-500.0,8.992e-05,2]
[347521757,1735900233466,-500.0,8.992e-05,2]
[347521758,1735900233476,-1409.11,8.992e-05,2]
[347521759,1735900233486,-500.0,8.992e-05,2]
[347521760,1735900233495,-916.39,8.992e-05,2]
[347521761,1735900233505,-500.0,8.992e-05,2]
[347521762,1735900233515,-500.0,8.992e-05,2]
[347521763,1735900233525,-500.0,8.992e-05,2]
[347521764,1735900233535,-1269.35,8.992e-05,2]
[347521765,1735900233544,-533.77951205,8.992e-05,2]
[347521766,1735900233553,-1166.76,8.992e-05,2]
[347521767,1735900233562,-699.04,8.992e-05,2]
[347521768,1735900233572,-582.36,8.992e-05,2]
[347521769,1735900233581,-1766.6,8.992e-05,2]
[347521770,1735900233590,-500.0,8.992e-05,2]
[347521771,1735900233599,-2365.62,8.992e-05,2]
[347521772,1735900233608,-606.34,8.992e-05,2]
[347521773,1735900233618,-500.0,8.992e-05,2]
[347521774,1735900233627,-500.0,8.992e-05,2]
[347521775,1735900233637,-568.12,8.992e-05,2]
[347521776,1735900233647,-500.0,8.992e-05,2]
[347521777,1735900233656,-935.93,8.992e-05,2]
[347521778,1735900233666,-500.0,8.992e-05,2]
[347521779,1735900233676,-802.33,8.992e-05,2]
[347521780,1735900233685,-900.77,8.992e-05,2]
[347521781,1735900233695,-1962.3,8.992e-05,2]
[347521782,1735900233704,-1193.83,8.992e-05,2]
[347521783,1735900233714,-855.58,8.992e-05,2]
[347521784,1735900233723,-694.52,8.992e-05,2]
[347521785,1735900233733,-2116.25,8.992e-05,2]
[347521786,1735900233747,-1297.02,8.992e-05,2]
[347521787,1735900233759,-516.23,8.992e-05,2]
[347521788,1735900233769,-1223.13,8.992e-05,2]
[347521789,1735900233781,-2158.79,8.992e-05,2]
[347521790,1735900233792,-2142.1,8.992e-05,2]
[347521791,1735900233802,-1921.04,8.992e-05,2]
[347521792,1735900233811,-835.83,8.992e-05,2]
[347521793,1735900233820,-885.9,8.992e-05,2]
[347521794,1735900233830,-1261.63,8.992e-05,2]
[347521795,1735900233839,-1111.65,8.992e-05,2]
[347521796,1735900233848,-521.44,8.992e-05,2]
[347521797,1735900233858,-1230.27,8.992e-05,2]
[347521798,1735900233867,-1468.32,8.992e-05,2]
[347521799,1735900233877,-1007.52,8.992e-05,2]
[347521800,1735900233886,-1186.9,8.992e-05,2]
[347521801,1735900233896,-1539.02,8.992e-05,2]
[347521802,1735900233905,-1120.09,8.992e-05,2]
[347521803,1735900233915,-514.04,8.992e-05,2]
[347521804,1735900233925,-1293.14,8.992e-05,2]
[347521805,1735900233934,-500.0,8.992e-05,2]
[347521806,1735900233943,-5051.22,8.992e-05,2]
[347521807,1735900233953,-595.83,8.992e-05,2]
[347521808,1735900233962,-769.19,8.992e-05,2]
[347521809,1735900233971,-938.08,8.992e-05,2]
[347521810,1735900233980,-1224.14,8.992e-05,2]
[347521811,1735900233989,-2417.06,8.992e-05,2]
[347521812,1735900233999,-4079.22,8.992e-05,2]
[347521813,1735900234009,-821.94,8.992e-05,2]
[347521814,1735900234018,-500.0,8.992e-05,2]
[347521815,1735900234027,-1397.39,8.992e-05,2]
[347521816,1735900234037,-1660.35,8.992e-05,2]
[347521817,1735900234046,-1502.7,8.992e-05,2]
[347521818,1735900234055,-500.0,8.992e-05,2]
[347521819,1735900234065,-500.0,8.992e-05,2]
[347521820,1735900234074,-1433.58,8.992e-05,2]
[347521821,1735900234083,-5442.72,8.992e-05,2]
[347521822,1735900234093,-10348.89,8.992e-05,2]
[347521823,1735900234102,-500.0,8.992e-05,2]
[347521824,1735900234112,-500.0,8.992e-05,2]
[347521825,1735900234121,-10279.29,8.992e-05,2]
[347521826,1735900234403,-3964.060581,8.992e-05,2]
[347521827,1735900234413,-1512.5,8.992e-05,2]
[347521828,1735900234422,-959.87,8.992e-05,2]
[347521829,1735900234432,-552.57,8.992e-05,2]
[347521830,1735900234441,-660.0,8.992e-05,2]
[347521831,1735900234451,-2908.22716546,8.992e-05,2]
[347521832,1735900234497,-515.24829337,8.992e-05,2]
[347521833,1735900234509,-547.91945619,8.992e-05,2]
[347521854,1735900239870,-1024.9677062,8.991e-05,2]
[347521861,1735900243075,-768.89942114,8.991e-05,2]
[347521862,1735900243239,-7935.24287266,8.991e-05,2]
[347521863,1735900243248,-879.79,8.991e-05,2]
[347521864,1735900243258,-2316.35,8.991e-05,2]
[347521865,1735900243270,-1754.29,8.991e-05,2]
[347521866,1735900243279,-500.0,8.991e-05,2]
[347521867,1735900243288,-2520.90508498,8.992e-05,2]
[347521868,1735900243297,-1247.57,8.992e-05,2]
[347521869,1735900243306,-649.64423754,8.992e-05,2]
[347521870,1735900243315,-504.31,8.992e-05,2]
[347521871,1735900243324,-1029.48,8.992e-05,2]
[347521873,1735900243333,-3216.87,8.992e-05,2]
[347521874,1735900243342,-6052.21,8.992e-05,2]
[347521875,1735900243351,-1100.21,8.992e-05,2]
[347521876,1735900243359,-1076.2,8.992e-05,2]
[347521877,1735900243368,-1924.02,8.992e-05,2]
[347521878,1735900243377,-662.98,8.992e-05,2]
[347521879,1735900243386,-5560.33,8.992e-05,2]
[347521880,1735900243395,-4164.706289,8.992e-05,2]
[347521881,1735900243404,-1955.94,8.992e-05,2]
[347521882,1735900243413,-1134.83,8.992e-05,2]
[347521883,1735900243422,-1644.5,8.992e-05,2]
[347521884,1735900243430,-13023.02,8.992e-05,2]
[347521885,1735900243440,-1112.13,8.992e-05,2]
[347521886,1735900243449,-667.95,8.992e-05,2]
[347521887,1735900243457,-1824.79,8.992e-05,2]
[347521888,1735900243466,-1836.56,8.992e-05,2]
[347521890,1735900243475,-2242.98,8.992e-05,2]
[347521891,1735900243484,-1092.38,8.992e-05,2]
[347521892,1735900243493,-500.0,8.992e-05,2]
[347521893,1735900243502,-1946.32,8.992e-05,2]
[347521894,1735900243511,-1984.9,8.992e-05,2]
[347521895,1735900243520,-3020.04,8.992e-05,2]
[347521896,1735900243530,-500.0,8.992e-05,2]
[347521897,1735900243539,-984.1,8.992e-05,2]
[347521898,1735900243547,-1061.0,8.992e-05,2]
[347521899,1735900243556,-1583.94,8.992e-05,2]
[347521900,1735900243566,-2470.57,8.992e-05,2]
[347521901,1735900243575,-2619.82,8.992e-05,2]
[347521902,1735900243584,-500.0,8.992e-05,2]
[347521903,1735900243593,-694.71,8.992e-05,2]
[347521904,1735900243602,-1055.85,8.992e-05,2]
[347521905,1735900243612,-5118.7,8.992e-05,2]
[347521906,1735900243622,-500.0,8.992e-05,2]
[347521907,1735900243631,-875.46,8.992e-05,2]
[347521908,1735900243640,-1897.49,8.992e-05,2]
[347521909,1735900243650,-705.82,8.992e-05,2]
[347521910,1735900243659,-1455.27,8.992e-05,2]
[347521911,1735900243668,-500.0,8.992e-05,2]
[347521912,1735900243678,-1253.95,8.992e-05,2]
[347521913,1735900243688,-198.26807739,8.992e-05,2]
[347521914,1735900243697,-500.0,8.992e-05,2]
[347521915,1735900243707,-500.0,8.992e-05,2]
[347521916,1735900243716,-1315.65,8.992e-05,2]
[347521917,1735900243726,-4518.82,8.992e-05,2]
[347521918,1735900243735,-500.0,8.992e-05,2]
[347521919,1735900243745,-1171.55,8.992e-05,2]
[347521920,1735900243754,-582.55795794,8.992e-05,2]
[347521921,1735900243764,-755.11,8.992e-05,2]
[347521922,1735900243774,-2262.04,8.992e-05,2]
[347521923,1735900243784,-500.0,8.992e-05,2]
[347521924,1735900243793,-500.0,8.992e-05,2]
[347521925,1735900243803,-1335.73,8.992e-05,2]
[347521926,1735900243813,-500.0,8.992e-05,2]
[347521927,1735900243822,-1214.72,8.992e-05,2]
[347521928,1735900243832,-662.71,8.992e-05,2]
[347521929,1735900243841,-500.0,8.992e-05,2]
[347521930,1735900243851,-11478.58,8.992e-05,2]
[347521931,1735900243860,-685.56,8.992e-05,2]
[347521932,1735900243870,-500.0,8.992e-05,2]
[347521933,1735900243879,-9522.76,8.992e-05,2]
[347521934,1735900243889,-8659.95,8.992e-05,2]
[347521935,1735900243898,-1916.4,8.992e-05,2]
[347521936,1735900243908,-740.51,8.992e-05,2]
[347521937,1735900243917,-5968.25,8.992e-05,2]
[347521938,1735900243928,-500.0,8.992e-05,2]
[347521939,1735900243937,-2534.31,8.992e-05,2]
[347521940,1735900243946,-500.0,8.992e-05,2]
[347521941,1735900243955,-500.0,8.992e-05,2]
[347521942,1735900243964,-2069.32,8.992e-05,2]
[347521943,1735900243973,-500.0,8.992e-05,2]
[347521944,1735900243983,-4143.53,8.992e-05,2]
[347521945,1735900243991,-500.0,8.992e-05,2]
[347521946,1735900244000,-1960.97,8.992e-05,2]
[347521947,1735900244009,-500.0,8.992e-05,2]
[347521948,1735900244019,-3265.0,8.992e-05,2]
[347521949,1735900244028,-543.19,8.992e-05,2]
[347521950,1735900244037,-500.0,8.992e-05,2]
[347521951,1735900244046,-1656.89,8.992e-05,2]
[347521952,1735900244055,-500.0,8.992e-05,2]
[347521953,1735900244064,-500.0,8.992e-05,2]
[347521954,1735900244074,-1849.63,8.992e-05,2]
[347521955,1735900244083,-500.20725493,8.992e-05,2]
[347521956,1735900244092,-239.15351684,8.992e-05,2]
[347521957,1735900244101,-1763.46,8.992e-05,2]
[347521958,1735900244110,-4304.63319818,8.992e-05,2]
[347521961,1735900246470,-2.72987248,8.991e-05,2]
[347521962,1735900252099,40000.0,0.0001501,24]
[347521963,1735900291293,150.0,0.00017937,120]
[347521964,1735900292567,50000.0,0.0001501,24]
[347521965,1735900381437,50000.0,0.0001501,24]
[347521966,1735900411512,150.0,0.00015278,120]
[347521967,1735900422695,3000.0,0.00015,24]
[347521969,1735900443996,50000.0,0.0001501,24]
[347521970,1735900459696,1000.0,0.00015,24]
[347521971,1735900503920,157.0,0.00015,30]
[347521978,1735900520133,50000.0,0.0001501,24]
[347521979,1735900531289,150.0,0.00014736,120]
[347521980,1735900558815,50000.0,0.0001501,24]
[347521981,1735900574037,38858.25231123,0.0001501,24]
[347521982,1735900620049,3000.0,0.0001251,25]
[347521983,1735900650803,150.0,0.00016399,120]
[347521990,1735900735253,10000.0,0.00011156,15]
[347521991,1735900759819,40000.0,0.00011156,15]
[347521992,1735900779629,2500.0,8.991e-05,120]
[347521993,1735900779715,200.41383766,9.265e-05,120]
[347521994,1735900796403,50000.0,0.00011156,15]
[347521995,1735900803518,157.0,0.00011156,30]
[347521996,1735900803865,157.0,0.00013325,30]
[347521997,1735900817577,500.0,0.0002,120]
[347521998,1735900820675,50000.0,0.00011156,15]
[347521999,1735900829196,500.0,0.0002,120]
[347522000,1735900840582,500.0,0.0002,120]
[347522001,1735900880670,50000.0,0.00011156,15]
[347522002,1735901103133,158.0,0.00011156,30]
[347522003,1735901104244,158.0,0.00014771,30]
[347522005,1735901285864,50000.0,0.00011156,15]
[347522006,1735901352396,50000.0,0.00011156,15]
[347522007,1735901404384,158.0,0.00011156,30]
[347522013,1735901432163,-250.0,7.962e-05,2]
[347522014,1735901432172,-200.0,7.962e-05,2]
[347522015,1735901432181,-242.39612491,7.962e-05,2]
[347522016,1735901432194,-1423.28083575,7.962e-05,2]
[347522017,1735901432274,-1544.37166,7.962e-05,2]
[347522018,1735901432300,-84420.34137934,7.962e-05,2]
[347522019,1735901432310,-226.39,7.963e-05,2]
[347522020,1735901432321,-167.82,8.219e-05,2]
[347522021,1735901432334,-1747.02,8.219e-05,2]
[347522022,1735901432343,-171.06,8.219e-05,2]
[347522023,1735901432354,-250.0,8.219e-05,2]
[347522024,1735901432365,-1000.0,8.219e-05,2]
[347522025,1735901432375,-23900.0,8.289e-05,2]
[347522026,1735901432384,-250.0,8.313e-05,2]
[347522027,1735901432394,-6169.0,8.637e-05,2]
[347522028,1735901432403,-771.63,8.64e-05,2]
[347522029,1735901432412,-437.61,8.64e-05,2]
[347522030,1735901432421,-771.63,8.64e-05,2]
[347522031,1735901432431,-437.61,8.64e-05,2]
[347522032,1735901432441,-771.63,8.64e-05,2]
[347522033,1735901432451,-437.61,8.64e-05,2]
[347522034,1735901432461,-150.0,8.655e-05,2]
[347522035,1735901432473,-150.0,8.655e-05,2]
[347522037,1735901432483,-266.7716619,8.655e-05,2]
[347522039,1735901432492,-150.0,8.655e-05,2]
[347522040,1735901432502,-150.0,8.655e-05,2]
[347522042,1735901432516,-150.0,8.655e-05,2]
[347522043,1735901432525,-150.0,8.655e-05,2]
[347522044,1735901432535,-150.00000001,8.655e-05,2]
[347522046,1735901432544,-150.0,8.655e-05,2]
[347522048,1735901432553,-771.63,8.66e-05,2]
[347522050,1735901432563,-437.61,8.66e-05,2]
[347522051,1735901432855,-771.63,8.66e-05,2]
[347522052,1735901432869,-437.61,8.66e-05,2]
[347522053,1735901432878,-150.0,8.729e-05,2]
[347522054,1735901432888,-150.0,8.767e-05,2]
[347522055,1735901432898,-162.89,8.792e-05,2]
[347522056,1735901432907,-900.0,8.8e-05,3]
[347522057,1735901432917,-150.0,8.803e-05,2]
[347522058,1735901432926,-150.0,8.877e-05,2]
[347522059,1735901432935,-1206.954,8.892e-05,2]
[347522060,1735901432945,-40382.68949123,8.892e-05,2]
[347522061,1735901432956,-29932.55788102,8.892e-05,2]
[347522062,1735901432967,-685.30189752,8.892e-05,2]
[347522063,1735901432985,-79708.15233023,8.892e-05,2]
[347522064,1735901432994,-1900.0,8.9e-05,3]
[347522065,1735901433003,-300.0,8.904e-05,2]
[347522066,1735901433012,-196.53,8.904e-05,2]
[347522067,1735901433021,-150.0,8.904e-05,2]
[347522068,1735901433030,-127.83139948,8.904e-05,2]
[347522069,1735901433041,-851.11860052,8.904e-05,2]